Cogmind - Beta 16 @@@ ROGUE MODE // 2025.12.24 @ 15:45:32 Player: mirus Result: Destroyed by Y-45 Defender with Beam Rifle Performance ------------- Evolutions (2) 1000 Regions Visited (4) 800 Robots Destroyed (22) 110 Value Destroyed (728) 728 Prototype IDs (0) 0 Alien Tech Used (0) 0 Bonus (97) 97 TOTAL SCORE: 2735 Bonus ------- Follower Combat Kills 97 Cogmind --------- Core Integrity 0/550 Matter 225/300 Energy 99/100 System Corruption 0% Temperature Cool (9) Movement Core (50) Location -8/Materials Parts ------- > --- POWER (2) -------- (None) > --- PROPULSION (4) --- (None) > --- UTILITY (2) ------ (None) > --- WEAPON (3) ------- (None) > --- INVENTORY (5) ---- Scrap Suit Peak State ------------ > --- POWER ------------ Light Nuclear Core Light Nuclear Core > --- PROPULSION ------- Wheel > --- UTILITY ---------- Improved Heat Sink Light Armor Plating > --- WEAPON ----------- Light Assault Rifle High-powered Shotgun Improved Datajack > --- INVENTORY -------- Scrap Suit Heavy Assault Rifle [Rating: 19] Favorites ----------- Power Light Nuclear Core Engine Ion Engine Power Core Light Nuclear Core Propulsion Light Treads Treads Light Treads Wheel Wheel Flight Unit Flight Unit Utility ECM Suite Device ECM Suite Storage Medium Storage Unit Protection Light Armor Plating Weapon Medium Laser Energy Gun Medium Laser Ballistic Gun Light Assault Rifle Ballistic Cannon Battle Cannon Special Melee Weapon Improved Datajack Build | -11 -10 -10 -10 -8 ------- Run | Yrd Mat Min Sub Mat Slots Evolved 4 | . . . . 4 Power 1 | . . . . 1 Propulsion 2 | . . . . 2 Utility . | . . . . . Weapon 1 | . . . . 1 Parts Attached 35 | 6 2 4 4 19 Power 11 | 1 . 1 1 8 Engine 6 | 1 . . . 5 Core 5 | . . 1 1 3 Reactor . | . . . . . Propulsion 10 | 2 . 1 2 5 Treads 3 | 2 . 1 . . Leg . | . . . . . Wheel 1 | . . . . 1 Hover . | . . . . . Flight 6 | . . . 2 4 Utility 7 | 1 2 1 . 3 Device 4 | . 2 . . 2 Storage 2 | 1 . 1 . . Processor . | . . . . . Hackware . | . . . . . Protection 1 | . . . . 1 Artifact . | . . . . . Weapon 7 | 2 . 1 1 3 Energy Gun 1 | 1 . . . . Energy Cannon . | . . . . . Ballistic Gun 4 | 1 . . 1 2 Ballistic Cannon 1 | . . 1 . . Launcher . | . . . . . Special Weapon . | . . . . . Impact Weapon . | . . . . . Slashing Weapon . | . . . . . Piercing Weapon . | . . . . . Special Melee Weapon 1 | . . . . 1 Unidentified Prototypes . | . . . . . Parts Lost 24 | . . . 4 20 Power 7 | . . . 1 6 Propulsion 8 | . . . 1 7 Utility 3 | . . . . 3 Weapon 6 | . . . 2 4 Highest Loss Streak 11 | . . . 4 11 To Critical Strikes . | . . . . . Average Backups 6 | . 3 8 9 2 Power . | . 1 1 1 . Propulsion 3 | . 1 5 5 . Utility 1 | . . 1 2 1 Weapon . | . . . 1 . Tool/Special . | . . . . . Unused Backups 2 | . . 1 . 1 Power . | . . . . . Propulsion . | . . . . . Utility 2 | . . 1 . 1 Weapon . | . . . . . Tool/Special . | . . . . . Average Slot Usage (%) 93 | . 99 100 96 73 Engine 5 | . 14 3 . 7 Core 7 | . . 10 12 4 Treads 21 | . 28 28 27 . Flight 3 | . . . . 18 Device 13 | . 13 14 14 12 Storage 11 | . 14 14 14 . Energy Gun 10 | . 14 14 12 . Ballistic Gun 8 | . 14 4 . 19 Ballistic Cannon 6 | . . 9 12 . Special Melee Weapon 1 | . . . . 5 Peak Build Rating 19 | 6 8 11 11 19 Average Rating 10 | 4 7 10 10 15 On Entrance 6 | . 6 8 11 6 Avg Prop Armor Cover (%) . | . . . . . Naked Turns 5 | . . . . 5 Heaviest Build 22 | 13 15 22 22 20 Greatest Support 40 | 40 40 40 40 16 Greatest Overweight (x) 5 | 3 . . . 5 Average Overweight (x) . | . . . . . Largest Inventory Capacity 10 | 8 8 10 10 10 Average Capacity 8 | 7 8 9 10 5 Most Carried 10 | 1 8 10 10 9 Average Carried 6 | . 3 8 10 3 Final Capacity 10 | 8 8 10 10 5 Final Carried 10 | 1 8 10 10 2 Class Distribution -------------------- 89% | Mutant 7% | Sprinter 3% | Scavenger-Mutant Dominant Class ---------------- Mutant | -10/Materials Mutant | -10/Mines Mutant | -10/Subcaves Mutant | -8/Materials Resources | -11 -10 -10 -10 -8 ----------- Run | Yrd Mat Min Sub Mat Matter Collected 887 | 209 91 65 75 447 Remotely . | . . . . . Salvage Created 715 | . 139 18 145 413 Parts 43 | . 6 4 12 21 Haulers Intercepted . | . . . . . Recyclers Shooed . | . . . . . Parts Field Recycled . | . . . . . Retrieved Matter . | . . . . . Parts Self-Destructed . | . . . . . Prevented . | . . . . . Parts Restored . | . . . . . Kills | -11 -10 -10 -10 -8 ------- Run | Yrd Mat Min Sub Mat Combat Hostiles Destroyed 20 | . 3 2 4 11 Guns 16 | . 3 . 2 11 Cannons 4 | . . 2 2 . Classes Destroyed 6 | . 1 1 1 3 Worker 1 | . . . . 1 Tunneler 1 | . . . . 1 Swarmer 5 | . . 2 . 3 Grunt 9 | . 3 . . 6 Sentry 2 | . . . . 2 Subdweller 4 | . . . 4 . Best Kill Streak 4 | . 1 2 2 4 Combat Bots Only 4 | . 1 2 2 4 Max Kills in Single Turn 2 | . 1 1 1 2 Gunslinging 1 | . . . . 1 Exploded . | . . . . . Melee . | . . . . . Uniques/NPCs Destroyed . | . . . . . Combat | -11 -10 -10 -10 -8 -------- Run | Yrd Mat Min Sub Mat Hostile Shots Fired 237 | . 26 21 27 163 Missed 69 | . 11 6 8 44 Hits 168 | . 15 15 19 119 Projectile 168 | . 15 15 19 119 AOE 5 | . . . 5 . Critical Strikes 6 | . . . 2 4 Damage Taken 2492 | . 192 150 559 1591 Core 750 | . 51 29 109 561 Absorbed by Shields . | . . . . . Core Remaining (%) 62 | 100 . . 24 . Volleys Fired 114 | . 20 5 22 67 Largest 3 | . 2 2 2 3 Hottest 83 | . 70 83 83 73 Shots Fired 161 | . 38 10 34 79 Gun 141 | . 38 5 19 79 Cannon 20 | . . 5 15 . Launcher . | . . . . . Special . | . . . . . Kinetic 126 | . 20 5 22 79 Thermal 35 | . 18 5 12 . Explosive . | . . . . . Electromagnetic . | . . . . . Robot Hit Streak 10 | . 5 2 6 10 Robot Miss Streak 4 | . 3 3 3 4 Penetration Max . | . . . . . Secondary Targets 2 | . . . . 2 Max Gunslinging Chain 1 | . . . . 1 Shots Hit Robots 105 | . 22 4 16 63 Core Hits 50 | . 12 2 7 29 Critical Kills . | . . . . . Critical Parts Destroyed 1 | . . . . 1 Critical Strikes 3 | . 1 . 1 1 Burn 1 | . 1 . . . Destroy 1 | . . . . 1 Blast 1 | . . . 1 . Melee Attacks 7 | . . . . 7 Impact . | . . . . . Slashing . | . . . . . Piercing . | . . . . . Sneak Attacks . | . . . . . Combat Hostiles . | . . . . . Follow-up Attacks . | . . . . . Damage Inflicted 1638 | . 241 79 329 989 Guns 1415 | . 241 24 161 989 Cannons 223 | . . 55 168 . Explosions . | . . . . . Melee . | . . . . . Ramming . | . . . . . Kinetic 1440 | . 104 55 292 989 Thermal 198 | . 137 24 37 . Explosive . | . . . . . Electromagnetic . | . . . . . Impact . | . . . . . Slashing . | . . . . . Piercing . | . . . . . Highest Corruption . | . . . . . Average Corruption . | . . . . . Corruption Purged . | . . . . . Corruption Blocked . | . . . . . Overload Shots . | . . . . . Overflow Damage . | . . . . . Projectiles . | . . . . . Explosions . | . . . . . Melee . | . . . . . Knockbacks . | . . . . . Impact . | . . . . . Kinetic . | . . . . . Secondary . | . . . . . Self-Inflicted Damage . | . . . . . Shots . | . . . . . Rammed . | . . . . . Targets Rammed . | . . . . . Kicked . | . . . . . Crushed . | . . . . . Highest Temperature 248 | . 169 135 248 46 Average Temperature 65 | . 73 68 113 15 Received Heat Transfer 1156 | . 105 24 343 684 Siege Activations . | . . . . . Martial Activations . | . . . . . Shielding Activations . | . . . . . Robots Disrupted . | . . . . . Combat Hostiles . | . . . . . Robots Corrupted . | . . . . . Combat Hostiles . | . . . . . Parts Fried . | . . . . . Impact Corruptions . | . . . . . Robots Melted . | . . . . . Combat Hostiles . | . . . . . Parts Melted 2 | . . . 2 . Heat Transferred 666 | . 481 74 111 . Parts Sabotaged . | . . . . . Parts Stolen . | . . . . . Parts Stripped . | . . . . . Power Chain Reactions . | . . . . . Alert | -11 -10 -10 -10 -8 ------- Run | Yrd Mat Min Sub Mat Maximum Alert Level . | . . . . . Low Security (%) 100 | 100 100 100 . 100 Level 1 . | . . . . . Level 2 . | . . . . . Level 3 . | . . . . . Level 4 . | . . . . . Level 5 . | . . . . . High Security . | . . . . . Max Security . | . . . . . Peak Influence 136 | . 60 85 . 136 Initial . | . . . . . Average 21 | . 12 14 . 45 Influence Increases 602 | . 100 150 . 352 Destroy 0b10 Robot/C 380 | . 60 100 . 220 Destroy 0b10 Robot/NC 10 | . . . . 10 Destroy Leader 90 | . 20 20 . 50 Allied During Kill 14 | . . 14 . . Successful Hack 31 | . 20 . . 11 Disable Machine 30 | . . 15 . 15 Destroy Structure 2 | . . 1 . 1 Partial Spotted 30 | . . . . 30 Lose Combat Pursuer 15 | . . . . 15 Influence Decreases 602 | . 98 152 . 352 Entered New Map 2 | . . 2 . . Time Decay 397 | . 98 130 . 169 Lost Part 107 | . . . . 107 Lost Ally 20 | . . 20 . . Purge Threat 76 | . . . . 76 Squads Dispatched 6 | . 2 . . 4 Investigation 1 | . 1 . . . Extermination . | . . . . . Reinforcement 5 | . 1 . . 4 Assault . | . . . . . Garrison . | . . . . . Intercept . | . . . . . Searches Triggered . | . . . . . Construction Impeded . | . . . . . Haulers Reinforced . | . . . . . Active Scanning Responses . | . . . . . Cargo Convoy Interrupts . | . . . . . Stealth | -11 -10 -10 -10 -8 --------- Run | Yrd Mat Min Sub Mat Distress Signals 2 | . . . . 2 Communications Jammed . | . . . . . Distress Signals . | . . . . . Times Spotted 51 | . 6 7 7 31 Peak Tracking Total 11 | . 3 3 2 11 Tactical Retreats 2 | . . . . 2 ECM-based Alert Blocks 6 | . . . . 6 Traps | -11 -10 -10 -10 -8 ------- Run | Yrd Mat Min Sub Mat Traps Triggered 1 | . 1 . . . Indirectly . | . . . . . Trap Hack Attempts . | . . . . . Triggered . | . . . . . Disarmed . | . . . . . Reprogrammed . | . . . . . Reused . | . . . . . Traps Extracted . | . . . . . Installed . | . . . . . Triggered . | . . . . . Machines | -11 -10 -10 -10 -8 ---------- Run | Yrd Mat Min Sub Mat Machines Disabled 2 | . . 1 . 1 Max in Single Turn 1 | . . 1 . 1 Machines Repaired . | . . . . . Machines Dismantled . | . . . . . Machines Sabotaged . | . . . . . Overloaded Fab Kills . | . . . . . Hacking | -11 -10 -10 -10 -8 --------- Run | Yrd Mat Min Sub Mat Machines Accessed 8 | . 4 . . 4 Terminals 7 | . 3 . . 4 Fabricators . | . . . . . Repair Stations . | . . . . . Recycling Units 1 | . 1 . . . Scanalyzers . | . . . . . Garrison Access . | . . . . . Total Hacks 13 | . 8 . . 5 Successful 8 | . 5 . . 3 Failed 5 | . 3 . . 2 Catastrophic 1 | . . . . 1 Database Lockouts . | . . . . . Manual 4 | . 2 . . 2 Terminals 11 | . 6 . . 5 Fabricators . | . . . . . Repair Stations . | . . . . . Recycling Units 2 | . 2 . . . Scanalyzers . | . . . . . Garrison Access . | . . . . . Terminal Hacks 6 | . 3 . . 3 Unreport Threat 1 | . . . . 1 Zone Layout 5 | . 3 . . 2 Fabricator Hacks . | . . . . . Repair Station Hacks . | . . . . . Recycling Unit Hacks 2 | . 2 . . . Retrieve Matter 1 | . 1 . . . Retrieve Components 1 | . 1 . . . Scanalyzer . | . . . . . Garrison Access Hacks . | . . . . . Unauthorized Hacks . | . . . . . Terminals . | . . . . . Fabricators . | . . . . . Repair Stations . | . . . . . Recycling Units . | . . . . . Scanalyzers . | . . . . . Garrison Access . | . . . . . Data Cores Recovered . | . . . . . Used . | . . . . . Hacking Detections 6 | . 3 . . 3 Full Trace Events 1 | . 1 . . . Feedback Events . | . . . . . Feedback Blocked . | . . . . . Robot Schematics Acquired . | . . . . . Robots Built . | . . . . . Authchips . | . . . . . Time . | . . . . . Total Robot Build Rating . | . . . . . Part Schematics Acquired . | . . . . . Parts Built . | . . . . . Authchips . | . . . . . Time . | . . . . . Total Part Build Rating . | . . . . . Part Studies Acquired . | . . . . . Parts Repaired . | . . . . . Time . | . . . . . Parts Recycled . | . . . . . Recycled Matter . | . . . . . Retrieved Matter . | . . . . . Retrieved Components 7 | . 7 . . . Parts Scanalyzed . | . . . . . Part Schematics Acquired . | . . . . . Parts Damaged . | . . . . . Bothacking | -11 -10 -10 -10 -8 ------------ Run | Yrd Mat Min Sub Mat Used RIF Installer . | . . . . . Robots Hacked 2 | . . . . 2 Non-combat 2 | . . . . 2 Combat . | . . . . . Robot Hacks Applied 3 | . . . . 3 parse_system 2 | . . . . 2 no_distress 1 | . . . . 1 Relay Couplers Released . | . . . . . Fabnet Peak Effective % . | . . . . . Robots Rewired . | . . . . . Allies Hacked . | . . . . . Hacks Repelled . | . . . . . Allies | -11 -10 -10 -10 -8 -------- Run | Yrd Mat Min Sub Mat Total Allies 3 | . . 3 . . Largest Group 3 | . . 3 2 . Highest-Rated Group 40 | . . 40 24 . Highest-Rated Ally 16 | . . 16 16 . Total Orders . | . . . . . Ally Attacks 34 | . . 23 11 . Total Damage 349 | . . 222 127 . Kills 4 | . . 3 1 . Allies Corrupted . | . . . . . Allies Melted . | . . . . . Intel | -11 -10 -10 -10 -8 ------- Run | Yrd Mat Min Sub Mat Active Infowar (turns) 1892 | . 398 815 566 113 Terrain 86 | . 86 . . . ECM 1806 | . 312 815 566 113 Robot Analysis Total . | . . . . . Derelict Logs Recovered 2 | . . 2 . . Drone Launches . | . . . . . Drone Recoveries . | . . . . . Exploration | -11 -10 -10 -10 -8 ------------- Run | Yrd Mat Min Sub Mat Turns Passed 2349 | 91 410 815 566 467 Spaces Moved 1523 | 50 216 487 314 456 Core 40 | 15 . . . 25 Treads 1052 | 35 216 487 314 . Legs . | . . . . . Wheels 101 | . . . . 101 Hover . | . . . . . Flight 330 | . . . . 330 Fastest Speed 31 | 50 160 160 160 31 Average Speed 127 | 165 160 160 160 52 Slowest Speed 300 | 200 160 160 160 300 Overloaded Moves . | . . . . . Propulsion Burnouts . | . . . . . Robots Hopped 2 | . . . . 2 Potential Cave-ins . | . . . . . Cave-ins Triggered . | . . . . . Exploration Rate (%) 36 | 3 33 80 31 36 Regions Visited 4 Branch Regions 2 Pre-discovered Areas 1 | . . 1 . . Known Exits Taken . | . . . . . Unknown Exits Taken 4 | 1 1 1 1 . Scrap Searched 1 | . . 1 . . Spaces Dug . | . . . . . Terrain Destroyed 2 | . . 2 . . Melee . | . . . . . Projectile 2 | . . 2 . . AOE . | . . . . . Terrain Rammed . | . . . . . Walls Destroyed . | . . . . . Machines Disabled . | . . . . . Actions | -11 -10 -10 -10 -8 --------- Run | Yrd Mat Min Sub Mat Total 1759 | 56 246 514 342 601 Wait 44 | . . 13 . 31 Move 1515 | 49 215 486 313 452 Hop 2 | . . . . 2 Pick Up 14 | 1 8 2 . 3 Fast Attach 16 | 6 1 . 1 8 Attach 12 | . . . . 12 Detach 1 | . . . . 1 Swap 20 | . 1 4 5 10 Drop 14 | . 1 4 1 8 Fire 114 | . 20 5 22 67 Melee 7 | . . . . 7 Ram . | . . . . . Kick . | . . . . . Crush . | . . . . . Escape Stasis . | . . . . . Rewire . | . . . . . Trap . | . . . . . Miscellaneous . | . . . . . Route ------- -11/Scrapyard -10/Materials -10/Mines -10/Subcaves -8/Materials (discovered 2 exits: *Fac x2) History --------- Turn | Location | Event 29 | -11/Scrapyard | Discovered new exit (range 16) 92 | -11/Scrapyard | Entered Materials 306 | -10/Materials | Build established: Mutant 491 | -10/Materials | Discovered new exit (range 8) 502 | -10/Materials | Entered Mines 514 | -10/Mines | Learned 8 Materials zone layouts 520 | -10/Mines | Assisted by bots powering up and referring to "LRC-V3" 542 | -10/Mines | Joined a pair of Derelicts in attacking an 0b10 outpost 775 | -10/Mines | A weapon hastily lodged in a ceiling crevice suddenly fell to the ground 1100 | -10/Mines | Found a Scrap Suit stashed away for nefarious purposes 1103 | -10/Mines | Found Scrap Suit 1232 | -10/Mines | Learned location of Zion (-7) 1304 | -10/Mines | Discovered new exit (range 9) 1317 | -10/Mines | Entered Subcaves 1317 | -10/Subcaves | Accompanied by 2 allies 1318 | -10/Subcaves | Approached by a straggling Scientist 1481 | -10/Subcaves | Shifting Twisted Machinery released Sub. Beam Cannon 1547 | -10/Subcaves | Shifting Twisted Machinery released Sub. Monowheel 1603 | -10/Subcaves | Shifting Twisted Machinery released Flamer 1603 | -10/Subcaves | Shifting Twisted Machinery released Mak. Shrapnel Gun 1811 | -10/Subcaves | Discovered new exit (range 15) 1818 | -10/Subcaves | Ambushed by Subdwellers from Twisted Machinery 1824 | -10/Subcaves | Core integrity fell below 50% 1883 | -10/Subcaves | Entered Materials 1883 | -8/Materials | Evolved 4 slots: Power x1, Propulsion x2, Weapon x1 1884 | -8/Materials | Identified exit to Factory 1890 | -8/Materials | Lost 4 parts (1p1n2w) 2150 | -8/Materials | Lost 5 parts (2p2n1u) 2207 | -8/Materials | Lost 3 parts (3n) 2338 | -8/Materials | Core integrity fell below 50% 2347 | -8/Materials | Core integrity fell below 20% 2350 | -8/Materials | Destroyed by Y-45 Defender with Beam Rifle Last Messages --------------- Imp. Datajack destroyed. K-01 Serf collects debris. Lgt. Assault Rifle destroyed. Lgt. Deuterium Engine destroyed. K-01 Serf collects debris. Critical hit (Burn: +37). Hpw. Shotgun destroyed. Wheel destroyed. Critical hit (Burn: +37). Lgt. Nuclear Core destroyed. G-47 Trooper destroyed. Knocked back. Hvy. Assault Rifle destroyed. Cooling System destroyed. K-01 Serf collects debris. Critical hit (Burn: +37). Knocked back. Lgt. Nuclear Core destroyed. Penetrated by Slug. Knocked back. Map ----- +----------------------------------------------------+ | | | | | | | | | | | | | | | ######???????????????????????????????????????????? | | #???????????????????????????????????????????? | | T #???????????????????????????????????????????? | | #???????????????????????????????????????????? | | #???????????????????????????????????????????? | | #???????????????????######??????????????????? | | #???????????????????# ??????????????????? | | #???????????????????# " ??????????????????? | | #???????????????????# "G" ??????????????????? | | +#####???????????????????# " " ??????????????????? | | #?#################????# ??????????????????? | | #?# T ## #????# ??????????????????? | | #?# """ # #???#######??????????????????? | | #?# """ # #???# #????????????????????? | | ###?# """ # #???# < #????????????????????? | | #??# [ # #???# #????????? ?????????? | | #??# """ #? #???# ##### ????????? | | #??# """ #### ####### ????????? | | ##??#* """ + k H @ ????????? | | ###?# # s s ^ ????????? | | #######+#### g g"" " "s """ """ "????????? | | / !g= """"""" ^""""""""??????????????? | | [ """" ""?????????????????? | | ######## % ?????????????????? | | ########?# a ????????????????? | | ! """ #?# Y= | | "T" #?# k *%! k a | | "" ???# ###+###########+######## | | "" [???# ########## ##????? #???# ##### | | "" ??# #????????# #?????? #???# """ ## | | "" #?# #????????# #?????? #???# """ ## | | "" ! #?# #????????# #?????? #???# """ ## | | #?# #????????# #?????? #???# ## | | ##########+##???????# #?????? #???# """ ## | | ###**= #??????## ##?????##???# """ ## | | #*= """ ######## #??????????# """ ## | | #[= "R" # T" #??????????# ## | | + "*" + " #??????????########### | | # """ ! # #????????????????????#### | | # """ ####+### #???????????????????????? | | # """ !## #######???????????????????????? | | # ##! #?????????????????????????????? | | ############ #??????????????????????????#### | +----------------------------------------------------+ Best States ------------- Heat Dissipation 53 Energy Generation 23 Energy Capacity 290 Matter Stores 300 Matter Capacity 300 Sight Range 16 Terrain Scan Range 14 Terrain Scan Density 10 ECM Strength 1 Armor Coverage 150 Evasion (%) 63 Recoil Reduction 2 Item Schematics ----------------- None Robot Schematics ------------------ None Fabricated ------------ Nothing Repaired ---------- Nothing Studied --------- None Alien Tech Used ----------------- None Achievements -------------- Everything Is Under Control Junior Dev Challenges ------------ None Game ------ Seed GuidedBraceMesh Manual? 0 Play Time 00:42:12 Cumulative 2.9 hours Start 2025.12.24 @ 15:02:28 End 2025.12.24 @ 15:45:32 Sessions 1 Manual Loads 0 Difficulty Rogue Special Mode None Game No. 5 Rogue 5 Adventurer 0 Explorer 0 Win Type - Total 0 Types 0/0/0/0/0/0/0/0/0/0 Lore% 0 Gallery% 7 Achievement% 6 Wizard Run 0 Options --------- Layout 1 ASCII 0 Keyboard 0 Movement Mouse Keybinds 0 Fullscreen 1 Font 24/Smallcaps Map View 50x35 Zoom Use 0% Tactical HUD 0 Map Filters NONE Filters NONE Steam 1 RUN: ccb6e75f-c0d2-4dcf-89d9-45d86c73bc08